[Event "December 19 Early 2023"]
[Site "https://www.chess.com"]
[Date "2023.12.19"]
[Round "10"]
[White "Gulamirian, Korun"]
[Black "Saim, Mohamed Ilias"]
[Result "1-0"]
[Board "161"]
[TimeControl "180+1"]
[WhiteFideId "4144899"]
[BlackFideId "7900465"]
[WhiteElo "1621"]
[BlackElo "2063"]
[WhiteTeam "RUS"]
[BlackTeam "ALG"]
[WhiteClock "0:00:02"]
[BlackClock "0:00:00"]

1. e4 {[%clk 0:02:59]}  c6 {[%clk 0:02:59]} 2. Nc3 {[%clk 0:02:57]}  d5 {[%clk 0:03:00]} 3. Nf3 {[%clk 0:02:56]}  a6 {[%clk 0:03:00]} 4. exd5 {[%clk 0:02:49]}  cxd5 {[%clk 0:03:01]} 5. d4 {[%clk 0:02:48]}  Nc6 {[%clk 0:03:01]} 6. Be2 {[%clk 0:02:46]}  Bg4 {[%clk 0:03:00]} 7. O-O {[%clk 0:02:45]}  Nf6 {[%clk 0:03:00]} 8. h3 {[%clk 0:02:45]}  Bh5 {[%clk 0:03:00]} 9. Ne5 {[%clk 0:02:37]}  Bxe2 {[%clk 0:03:00]} 10. Nxe2 {[%clk 0:02:35]}  e6 {[%clk 0:03:00]} 11. Bg5 {[%clk 0:02:33]}  Be7 {[%clk 0:03:00]} 12. c3 {[%clk 0:02:28]}  Qc7 {[%clk 0:02:54]} 13. Bf4 {[%clk 0:02:27]}  Nxe5 {[%clk 0:02:48]} 14. Bxe5 {[%clk 0:02:27]}  Qb6 {[%clk 0:02:45]} 15. Qc2 {[%clk 0:02:23]}  Rc8 {[%clk 0:02:42]} 16. Nf4 {[%clk 0:02:10]}  O-O {[%clk 0:02:37]} 17. Nd3 {[%clk 0:02:07]}  Ne4 {[%clk 0:02:34]} 18. f3 {[%clk 0:02:02]}  Nd6 {[%clk 0:02:30]} 19. Bg3 {[%clk 0:01:54]}  Nc4 {[%clk 0:02:20]} 20. Rfc1 {[%clk 0:01:45]}  Bd6 {[%clk 0:02:05]} 21. Bxd6 {[%clk 0:01:37]}  Qxd6 {[%clk 0:02:04]} 22. b3 {[%clk 0:01:36]}  Ne3 {[%clk 0:02:01]} 23. Qf2 {[%clk 0:01:32]}  Nf5 {[%clk 0:01:59]} 24. Ne5 {[%clk 0:01:27]}  Rc7 {[%clk 0:01:54]} 25. g4 {[%clk 0:01:24]}  Ne7 {[%clk 0:01:51]} 26. f4 {[%clk 0:01:23]}  Rfc8 {[%clk 0:01:50]} 27. Qe3 {[%clk 0:01:20]}  Ng6 {[%clk 0:01:43]} 28. Rc2 {[%clk 0:01:10]}  Qe7 {[%clk 0:01:36]} 29. Rac1 {[%clk 0:01:07]}  Qh4 {[%clk 0:01:34]} 30. Kg2 {[%clk 0:01:03]}  Qh6 {[%clk 0:01:31]} 31. Re2 {[%clk 0:00:54]}  Nh4+ {[%clk 0:01:25]} 32. Kg3 {[%clk 0:00:52]}  b5 {[%clk 0:01:10]} 33. f5 {[%clk 0:00:44]}  Qf6 {[%clk 0:00:48]} 34. fxe6 {[%clk 0:00:39]}  fxe6 {[%clk 0:00:38]} 35. g5 {[%clk 0:00:30]}  Nf5+ {[%clk 0:00:37]} 36. Kf2 {[%clk 0:00:24]}  Nxe3+ {[%clk 0:00:32]} 37. gxf6 {[%clk 0:00:23]}  gxf6 {[%clk 0:00:20]} 38. Kxe3 {[%clk 0:00:20]}  fxe5 {[%clk 0:00:20]} 39. dxe5 {[%clk 0:00:18]}  Rxc3+ {[%clk 0:00:20]} 40. Rxc3 {[%clk 0:00:17]}  Rxc3+ {[%clk 0:00:21]} 41. Kd4 {[%clk 0:00:15]}  Rxh3 {[%clk 0:00:21]} 42. Kc5 {[%clk 0:00:14]}  Rh4 {[%clk 0:00:19]} 43. Kd6 {[%clk 0:00:13]}  Re4 {[%clk 0:00:19]} 44. Rf2 {[%clk 0:00:12]}  d4 {[%clk 0:00:19]} 45. Kxe6 {[%clk 0:00:11]}  d3 {[%clk 0:00:20]} 46. Rd2 {[%clk 0:00:07]}  Re2 {[%clk 0:00:14]} 47. Rxd3 {[%clk 0:00:06]}  Rxa2 {[%clk 0:00:15]} 48. Ke7 {[%clk 0:00:06]}  Rc2 {[%clk 0:00:11]} 49. Rg3+ {[%clk 0:00:02]}  Kh8 {[%clk 0:00:11]} 50. e6 {[%clk 0:00:02]}  Rc7+ {[%clk 0:00:10]} 51. Kf6 {[%clk 0:00:03]}  Rc8 {[%clk 0:00:09]} 52. e7 {[%clk 0:00:02]}  a5 {[%clk 0:00:07]} 53. Rd3 {[%clk 0:00:02]}  a4 {[%clk 0:00:00]} 54. Rd8+ {[%clk 0:00:02]} 1-0

[Event "December 19 Early 2023"]
[Site "https://www.chess.com"]
[Date "2023.12.19"]
[Round "11"]
[White "Maksimovic, Bojan"]
[Black "Suleymanli, Aydin"]
[Result "1-0"]
[Board "8"]
[TimeControl "180+1"]
[WhiteFideId "14408120"]
[BlackFideId "13413937"]
[WhiteElo "2527"]
[BlackElo "2553"]
[WhiteTeam "BIH"]
[BlackTeam "AZE"]
[WhiteClock "0:00:09"]
[BlackClock "0:00:03"]

1. Nf3 {[%clk 0:03:00]}  d6 {[%clk 0:02:59]} 2. g3 {[%clk 0:02:59]}  e5 {[%clk 0:02:59]} 3. d3 {[%clk 0:03:00]}  g6 {[%clk 0:02:56]} 4. Bg2 {[%clk 0:03:00]}  Bg7 {[%clk 0:02:56]} 5. O-O {[%clk 0:03:01]}  Ne7 {[%clk 0:02:56]} 6. Nbd2 {[%clk 0:03:02]}  O-O {[%clk 0:02:56]} 7. e4 {[%clk 0:03:02]}  a5 {[%clk 0:02:50]} 8. c3 {[%clk 0:03:00]}  c5 {[%clk 0:02:49]} 9. a4 {[%clk 0:02:56]}  b6 {[%clk 0:02:44]} 10. Nc4 {[%clk 0:02:54]}  Bb7 {[%clk 0:02:39]} 11. Qb3 {[%clk 0:02:38]}  Nc8 {[%clk 0:02:39]} 12. Bg5 {[%clk 0:02:36]}  Qc7 {[%clk 0:02:31]} 13. Na3 {[%clk 0:02:36]}  h6 {[%clk 0:02:28]} 14. Be3 {[%clk 0:02:35]}  Qd7 {[%clk 0:02:21]} 15. Nd2 {[%clk 0:02:33]}  Kh7 {[%clk 0:02:14]} 16. Ndc4 {[%clk 0:02:33]}  f5 {[%clk 0:02:04]} 17. f4 {[%clk 0:01:57]}  fxe4 {[%clk 0:01:48]} 18. dxe4 {[%clk 0:01:57]}  exf4 {[%clk 0:01:47]} 19. Bxf4 {[%clk 0:01:57]}  Qe6 {[%clk 0:01:37]} 20. Qc2 {[%clk 0:01:42]}  Ba6 {[%clk 0:01:34]} 21. b3 {[%clk 0:01:40]}  Nc6 {[%clk 0:01:30]} 22. Rad1 {[%clk 0:01:40]}  Rd8 {[%clk 0:01:30]} 23. Nb5 {[%clk 0:01:38]}  Bxb5 {[%clk 0:01:28]} 24. axb5 {[%clk 0:01:39]}  N6e7 {[%clk 0:01:28]} 25. h4 {[%clk 0:00:59]}  a4 {[%clk 0:01:27]} 26. Kh2 {[%clk 0:00:48]}  axb3 {[%clk 0:01:18]} 27. Qxb3 {[%clk 0:00:49]}  Ra7 {[%clk 0:00:59]} 28. Rfe1 {[%clk 0:00:48]}  Qg8 {[%clk 0:00:50]} 29. Bf1 {[%clk 0:00:43]}  d5 {[%clk 0:00:47]} 30. exd5 {[%clk 0:00:35]}  Nxd5 {[%clk 0:00:47]} 31. Bd2 {[%clk 0:00:35]}  Nce7 {[%clk 0:00:44]} 32. Qc2 {[%clk 0:00:34]}  Rda8 {[%clk 0:00:37]} 33. Bg2 {[%clk 0:00:32]}  Ra2 {[%clk 0:00:37]} 34. Qd3 {[%clk 0:00:32]}  R8a7 {[%clk 0:00:35]} 35. Re2 {[%clk 0:00:30]}  Kh8 {[%clk 0:00:34]} 36. Rde1 {[%clk 0:00:30]}  Ra1 {[%clk 0:00:09]} 37. Rxa1 {[%clk 0:00:27]}  Rxa1 {[%clk 0:00:10]} 38. Nxb6 {[%clk 0:00:27]}  Nxb6 {[%clk 0:00:07]} 39. Rxe7 {[%clk 0:00:28]}  Ra2 {[%clk 0:00:06]} 40. Qxg6 {[%clk 0:00:10]}  Rxd2 {[%clk 0:00:04]} 41. Re8 {[%clk 0:00:10]}  Na4 {[%clk 0:00:03]} 42. Rxg8+ {[%clk 0:00:10]}  Kxg8 {[%clk 0:00:04]} 43. Qe8+ {[%clk 0:00:10]}  Kh7 {[%clk 0:00:04]} 44. Qe4+ {[%clk 0:00:09]}  Kh8 {[%clk 0:00:03]} 45. Qxa4 {[%clk 0:00:09]} 1-0

[Event "December 19 Early 2023"]
[Site "https://www.chess.com"]
[Date "2023.12.19"]
[Round "11"]
[White "Szpar, Milosz"]
[Black "Krzyzanowski, Marcin"]
[Result "0-1"]
[Board "12"]
[TimeControl "180+1"]
[WhiteFideId "1184989"]
[BlackFideId "1132199"]
[WhiteElo "2446"]
[BlackElo "2471"]
[WhiteTeam "POL"]
[BlackTeam "POL"]
[WhiteClock "0:00:05"]
[BlackClock "0:00:03"]

1. e4 {[%clk 0:03:00]}  e5 {[%clk 0:02:56]} 2. Nf3 {[%clk 0:03:01]}  Nc6 {[%clk 0:02:57]} 3. Bb5 {[%clk 0:03:00]}  a6 {[%clk 0:02:55]} 4. Ba4 {[%clk 0:03:01]}  d6 {[%clk 0:02:55]} 5. O-O {[%clk 0:02:59]}  g6 {[%clk 0:02:51]} 6. c3 {[%clk 0:02:57]}  Bg7 {[%clk 0:02:49]} 7. d4 {[%clk 0:02:57]}  Bd7 {[%clk 0:02:48]} 8. Re1 {[%clk 0:02:54]}  Nge7 {[%clk 0:02:41]} 9. Be3 {[%clk 0:02:37]}  O-O {[%clk 0:02:39]} 10. Nbd2 {[%clk 0:02:33]}  b5 {[%clk 0:02:39]} 11. Bb3 {[%clk 0:02:28]}  h6 {[%clk 0:02:25]} 12. h3 {[%clk 0:02:20]}  Kh7 {[%clk 0:02:26]} 13. dxe5 {[%clk 0:02:20]}  dxe5 {[%clk 0:02:23]} 14. Bc5 {[%clk 0:02:19]}  Qe8 {[%clk 0:02:18]} 15. Nf1 {[%clk 0:02:09]}  Na5 {[%clk 0:02:10]} 16. Bd5 {[%clk 0:01:57]}  c6 {[%clk 0:02:01]} 17. Bb3 {[%clk 0:01:54]}  Nb7 {[%clk 0:01:54]} 18. Be3 {[%clk 0:01:49]}  c5 {[%clk 0:01:55]} 19. Ng3 {[%clk 0:01:46]}  Bc6 {[%clk 0:01:49]} 20. Bc2 {[%clk 0:01:43]}  Ng8 {[%clk 0:01:42]} 21. a4 {[%clk 0:01:37]}  Nf6 {[%clk 0:01:42]} 22. b4 {[%clk 0:01:33]}  cxb4 {[%clk 0:01:30]} 23. cxb4 {[%clk 0:01:34]}  Qe7 {[%clk 0:01:28]} 24. Qb1 {[%clk 0:01:30]}  Rfd8 {[%clk 0:01:10]} 25. a5 {[%clk 0:01:29]}  Nd6 {[%clk 0:01:08]} 26. Bb6 {[%clk 0:01:15]}  Rdc8 {[%clk 0:01:05]} 27. Nd2 {[%clk 0:01:12]}  Nd7 {[%clk 0:01:02]} 28. Be3 {[%clk 0:01:08]}  Bb7 {[%clk 0:01:02]} 29. Bb3 {[%clk 0:00:54]}  Bf8 {[%clk 0:01:01]} 30. Qa2 {[%clk 0:00:52]}  Kg7 {[%clk 0:00:57]} 31. Rac1 {[%clk 0:00:51]}  h5 {[%clk 0:00:54]} 32. f3 {[%clk 0:00:34]}  h4 {[%clk 0:00:46]} 33. Ne2 {[%clk 0:00:34]}  f5 {[%clk 0:00:42]} 34. Bd5 {[%clk 0:00:31]}  Nf6 {[%clk 0:00:28]} 35. Bxb7 {[%clk 0:00:23]}  Nxb7 {[%clk 0:00:29]} 36. exf5 {[%clk 0:00:22]}  gxf5 {[%clk 0:00:29]} 37. Rb1 {[%clk 0:00:15]}  Qf7 {[%clk 0:00:22]} 38. Qb2 {[%clk 0:00:15]}  Bd6 {[%clk 0:00:18]} 39. Bf2 {[%clk 0:00:15]}  Nd5 {[%clk 0:00:15]} 40. Nf1 {[%clk 0:00:13]}  Qf6 {[%clk 0:00:14]} 41. Red1 {[%clk 0:00:11]}  Ne7 {[%clk 0:00:08]} 42. Bxh4 {[%clk 0:00:10]}  Qxh4 {[%clk 0:00:06]} 43. Rxd6 {[%clk 0:00:11]}  Nxd6 {[%clk 0:00:07]} 44. Rd1 {[%clk 0:00:09]}  Qf6 {[%clk 0:00:08]} 45. Nfg3 {[%clk 0:00:09]}  Kf7 {[%clk 0:00:07]} 46. Nh5 {[%clk 0:00:08]}  Qe6 {[%clk 0:00:05]} 47. Nef4 {[%clk 0:00:09]}  Nc4 {[%clk 0:00:04]} 48. Qf2 {[%clk 0:00:04]}  exf4 {[%clk 0:00:04]} 49. Qh4 {[%clk 0:00:04]}  Qg6 {[%clk 0:00:03]} 50. Nxf4 {[%clk 0:00:04]}  Qf6 {[%clk 0:00:02]} 51. Qh7+ {[%clk 0:00:04]}  Qg7 {[%clk 0:00:03]} 52. Qh5+ {[%clk 0:00:04]}  Kg8 {[%clk 0:00:03]} 53. Rd7 {[%clk 0:00:05]}  Rd8 {[%clk 0:00:03]} 54. Rb7 {[%clk 0:00:05]}  Rd1+ {[%clk 0:00:02]} 55. Kh2 {[%clk 0:00:05]}  Ne3 {[%clk 0:00:02]} 56. Qh4 {[%clk 0:00:04]}  Nf1+ {[%clk 0:00:02]} 57. Kg1 {[%clk 0:00:05]}  Ng3+ {[%clk 0:00:03]} 58. Kh2 {[%clk 0:00:05]}  Rh1# {[%clk 0:00:03]} 0-1

[Event "December 19 Early 2023"]
[Site "https://www.chess.com"]
[Date "2023.12.19"]
[Round "11"]
[White "Pak, Yevgeniy"]
[Black "Durarbayli, Vasif"]
[Result "0-1"]
[Board "13"]
[TimeControl "180+1"]
[WhiteFideId "14201712"]
[BlackFideId "13402935"]
[WhiteElo "2320"]
[BlackElo "2551"]
[WhiteTeam "KAZ"]
[BlackTeam "AZE"]
[WhiteClock "0:00:02"]
[BlackClock "0:00:03"]

1. d4 {[%clk 0:03:00]}  e6 {[%clk 0:02:59]} 2. e4 {[%clk 0:02:58]}  d5 {[%clk 0:03:00]} 3. Nd2 {[%clk 0:02:56]}  Nf6 {[%clk 0:02:58]} 4. e5 {[%clk 0:02:55]}  Nfd7 {[%clk 0:02:58]} 5. Bd3 {[%clk 0:02:55]}  c5 {[%clk 0:02:59]} 6. c3 {[%clk 0:02:55]}  Nc6 {[%clk 0:03:00]} 7. Ne2 {[%clk 0:02:55]}  a5 {[%clk 0:03:00]} 8. f4 {[%clk 0:02:54]}  Qb6 {[%clk 0:03:01]} 9. Nf3 {[%clk 0:02:53]}  Be7 {[%clk 0:02:56]} 10. O-O {[%clk 0:02:50]}  a4 {[%clk 0:02:53]} 11. a3 {[%clk 0:02:40]}  c4 {[%clk 0:02:46]} 12. Bc2 {[%clk 0:02:39]}  Qb5 {[%clk 0:02:46]} 13. Be3 {[%clk 0:02:29]}  g6 {[%clk 0:02:46]} 14. Qd2 {[%clk 0:02:25]}  Na5 {[%clk 0:02:42]} 15. Rab1 {[%clk 0:02:18]}  Nb3 {[%clk 0:02:42]} 16. Qe1 {[%clk 0:02:18]}  h6 {[%clk 0:02:37]} 17. g4 {[%clk 0:02:16]}  Nf8 {[%clk 0:02:36]} 18. Ng3 {[%clk 0:02:14]}  Bd7 {[%clk 0:02:36]} 19. f5 {[%clk 0:02:12]}  h5 {[%clk 0:02:13]} 20. h3 {[%clk 0:02:09]}  hxg4 {[%clk 0:02:12]} 21. hxg4 {[%clk 0:02:09]}  gxf5 {[%clk 0:02:13]} 22. gxf5 {[%clk 0:02:09]}  exf5 {[%clk 0:02:12]} 23. Nxf5 {[%clk 0:02:04]}  Rg8+ {[%clk 0:01:58]} 24. Kf2 {[%clk 0:02:02]}  Bxf5 {[%clk 0:01:54]} 25. Bxf5 {[%clk 0:02:01]}  Ne6 {[%clk 0:01:54]} 26. Rg1 {[%clk 0:01:59]}  Kd7 {[%clk 0:01:54]} 27. Qe2 {[%clk 0:01:53]}  Qb6 {[%clk 0:01:46]} 28. Rh1 {[%clk 0:01:44]}  Qd8 {[%clk 0:01:41]} 29. Rh7 {[%clk 0:01:42]}  Qf8 {[%clk 0:01:30]} 30. Rbh1 {[%clk 0:01:39]}  Kc6 {[%clk 0:01:24]} 31. R1h6 {[%clk 0:01:35]}  Kb5 {[%clk 0:01:20]} 32. Rxf7 {[%clk 0:01:10]}  Qxf7 {[%clk 0:01:18]} 33. Bxe6 {[%clk 0:01:10]}  Qg7 {[%clk 0:00:40]} 34. Bxd5 {[%clk 0:01:08]}  Qg3+ {[%clk 0:00:29]} 35. Kf1 {[%clk 0:01:08]}  Na5 {[%clk 0:00:30]} 36. Be4 {[%clk 0:00:35]}  Rh8 {[%clk 0:00:18]} 37. Qg2 {[%clk 0:00:19]}  Qxg2+ {[%clk 0:00:13]} 38. Kxg2 {[%clk 0:00:20]}  Rag8+ {[%clk 0:00:13]} 39. Kf2 {[%clk 0:00:18]}  Rxh6 {[%clk 0:00:03]} 40. Bxh6 {[%clk 0:00:18]}  Rh8 {[%clk 0:00:04]} 41. Bf4 {[%clk 0:00:18]}  Rh1 {[%clk 0:00:05]} 42. d5 {[%clk 0:00:17]}  Bc5+ {[%clk 0:00:05]} 43. Nd4+ {[%clk 0:00:17]}  Bxd4+ {[%clk 0:00:05]} 44. cxd4 {[%clk 0:00:18]}  Rd1 {[%clk 0:00:05]} 45. Ke3 {[%clk 0:00:17]}  c3 {[%clk 0:00:04]} 46. bxc3 {[%clk 0:00:17]}  Nc4+ {[%clk 0:00:04]} 47. Kf3 {[%clk 0:00:18]}  Nxa3 {[%clk 0:00:04]} 48. e6 {[%clk 0:00:17]}  Rh1 {[%clk 0:00:04]} 49. Kg4 {[%clk 0:00:17]}  Rh8 {[%clk 0:00:02]} 50. d6 {[%clk 0:00:16]}  Nc4 {[%clk 0:00:02]} 51. d7 {[%clk 0:00:15]}  Nb6 {[%clk 0:00:03]} 52. Bxb7 {[%clk 0:00:13]}  a3 {[%clk 0:00:03]} 53. e7 {[%clk 0:00:11]}  Nxd7 {[%clk 0:00:03]} 54. Kf5 {[%clk 0:00:12]}  a2 {[%clk 0:00:03]} 55. Ke6 {[%clk 0:00:09]}  Nb6 {[%clk 0:00:03]} 56. c4+ {[%clk 0:00:07]}  Nxc4 {[%clk 0:00:02]} 57. Kd7 {[%clk 0:00:04]}  a1=Q {[%clk 0:00:02]} 58. Bc6+ {[%clk 0:00:04]}  Kb4 {[%clk 0:00:02]} 59. e8=Q {[%clk 0:00:04]}  Rxe8 {[%clk 0:00:03]} 60. Kxe8 {[%clk 0:00:05]}  Qxd4 {[%clk 0:00:03]} 61. Bc7 {[%clk 0:00:04]}  Qc5 {[%clk 0:00:02]} 62. Kd7 {[%clk 0:00:05]}  Ne5+ {[%clk 0:00:02]} 63. Bxe5 {[%clk 0:00:02]}  Qxe5 {[%clk 0:00:03]} 0-1

[Event "December 19 Early 2023"]
[Site "https://www.chess.com"]
[Date "2023.12.19"]
[Round "11"]
[White "So, Wesley"]
[Black "Finek, Vaclav"]
[Result "1-0"]
[Board "15"]
[TimeControl "180+1"]
[WhiteFideId "5202213"]
[BlackFideId "23718293"]
[WhiteElo "2767"]
[BlackElo "2309"]
[WhiteTeam "USA"]
[BlackTeam "CZE"]
[WhiteClock "0:00:58"]
[BlackClock "0:00:43"]

1. b3 {[%clk 0:02:49]}  e5 {[%clk 0:02:59]} 2. Bb2 {[%clk 0:02:50]}  Nc6 {[%clk 0:02:58]} 3. e3 {[%clk 0:02:49]}  Nf6 {[%clk 0:02:58]} 4. Bb5 {[%clk 0:02:48]}  Bd6 {[%clk 0:02:58]} 5. Na3 {[%clk 0:02:46]}  Na5 {[%clk 0:02:57]} 6. Be2 {[%clk 0:02:45]}  a6 {[%clk 0:02:56]} 7. c4 {[%clk 0:02:44]}  O-O {[%clk 0:02:54]} 8. Nc2 {[%clk 0:02:38]}  c5 {[%clk 0:02:52]} 9. Nf3 {[%clk 0:02:34]}  e4 {[%clk 0:02:43]} 10. Ng5 {[%clk 0:02:34]}  Be7 {[%clk 0:02:42]} 11. d3 {[%clk 0:02:30]}  d5 {[%clk 0:02:33]} 12. cxd5 {[%clk 0:02:25]}  Qxd5 {[%clk 0:02:31]} 13. Nxe4 {[%clk 0:02:19]}  Nxe4 {[%clk 0:02:30]} 14. Bf3 {[%clk 0:02:15]}  Nxf2 {[%clk 0:02:18]} 15. Bxd5 {[%clk 0:02:14]}  Nxd1 {[%clk 0:02:18]} 16. Rxd1 {[%clk 0:02:15]}  Be6 {[%clk 0:02:17]} 17. Bxe6 {[%clk 0:02:15]}  fxe6 {[%clk 0:02:18]} 18. Ke2 {[%clk 0:02:15]}  Bf6 {[%clk 0:02:16]} 19. Ba3 {[%clk 0:02:09]}  Rac8 {[%clk 0:02:08]} 20. Rhf1 {[%clk 0:02:03]}  Be7 {[%clk 0:02:06]} 21. Ne1 {[%clk 0:01:51]}  Nc6 {[%clk 0:02:02]} 22. Nf3 {[%clk 0:01:48]}  a5 {[%clk 0:02:01]} 23. Rc1 {[%clk 0:01:43]}  Nb4 {[%clk 0:01:58]} 24. Bxb4 {[%clk 0:01:42]}  axb4 {[%clk 0:01:59]} 25. Rc2 {[%clk 0:01:40]}  Bd6 {[%clk 0:01:56]} 26. Ng5 {[%clk 0:01:36]}  Rxf1 {[%clk 0:01:48]} 27. Kxf1 {[%clk 0:01:37]}  Bxh2 {[%clk 0:01:44]} 28. Nxe6 {[%clk 0:01:26]}  Re8 {[%clk 0:01:43]} 29. Nxc5 {[%clk 0:01:26]}  Rxe3 {[%clk 0:01:41]} 30. Re2 {[%clk 0:01:25]}  Rxe2 {[%clk 0:01:37]} 31. Kxe2 {[%clk 0:01:25]}  b6 {[%clk 0:01:34]} 32. Ne4 {[%clk 0:01:20]}  Bg1 {[%clk 0:01:29]} 33. Ng5 {[%clk 0:01:16]}  Bc5 {[%clk 0:01:21]} 34. Kf3 {[%clk 0:01:10]}  h6 {[%clk 0:01:12]} 35. Nh3 {[%clk 0:01:07]}  g5 {[%clk 0:01:07]} 36. Ke4 {[%clk 0:01:03]}  Kf7 {[%clk 0:01:06]} 37. d4 {[%clk 0:01:02]}  Be7 {[%clk 0:01:01]} 38. Kf5 {[%clk 0:01:02]}  Bf6 {[%clk 0:00:58]} 39. d5 {[%clk 0:01:02]}  Bd4 {[%clk 0:00:58]} 40. d6 {[%clk 0:00:52]}  Bc5 {[%clk 0:00:56]} 41. d7 {[%clk 0:00:52]}  Ke7 {[%clk 0:00:56]} 42. Kg6 {[%clk 0:00:53]}  Kxd7 {[%clk 0:00:41]} 43. Kxh6 {[%clk 0:00:53]}  g4 {[%clk 0:00:41]} 44. Nf4 {[%clk 0:00:48]}  Kd6 {[%clk 0:00:36]} 45. Kg5 {[%clk 0:00:49]}  Ke5 {[%clk 0:00:36]} 46. Kxg4 {[%clk 0:00:49]}  Kd4 {[%clk 0:00:20]} 47. Kf5 {[%clk 0:00:43]}  Kc3 {[%clk 0:00:20]} 48. Ke4 {[%clk 0:00:39]}  Kb2 {[%clk 0:00:18]} 49. Kd3 {[%clk 0:00:35]}  Kxa2 {[%clk 0:00:18]} 50. Kc2 {[%clk 0:00:36]}  Bd6 {[%clk 0:00:15]} 51. Ne6 {[%clk 0:00:36]}  Bg3 {[%clk 0:00:13]} 52. Nd4 {[%clk 0:00:36]}  Be5 {[%clk 0:00:10]} 53. Ne2 {[%clk 0:00:36]}  b5 {[%clk 0:00:10]} 54. g4 {[%clk 0:00:36]}  Bf6 {[%clk 0:00:07]} 55. Ng3 {[%clk 0:00:36]}  Be5 {[%clk 0:00:07]} 56. Ne4 {[%clk 0:00:37]}  Bf4 {[%clk 0:00:08]} 57. g5 {[%clk 0:00:37]}  Be5 {[%clk 0:00:09]} 58. g6 {[%clk 0:00:38]}  Bg7 {[%clk 0:00:09]} 59. Ng5 {[%clk 0:00:38]}  Be5 {[%clk 0:00:09]} 60. Ne6 {[%clk 0:00:39]}  Bf6 {[%clk 0:00:10]} 61. g7 {[%clk 0:00:37]}  Bxg7 {[%clk 0:00:10]} 62. Nxg7 {[%clk 0:00:38]}  Ka3 {[%clk 0:00:11]} 63. Ne6 {[%clk 0:00:38]}  Ka2 {[%clk 0:00:11]} 64. Nd4 {[%clk 0:00:39]}  Ka3 {[%clk 0:00:10]} 65. Nxb5+ {[%clk 0:00:38]}  Ka2 {[%clk 0:00:10]} 66. Nd4 {[%clk 0:00:39]}  Ka3 {[%clk 0:00:10]} 67. Nc6 {[%clk 0:00:39]}  Ka2 {[%clk 0:00:11]} 68. Nxb4+ {[%clk 0:00:40]}  Ka3 {[%clk 0:00:12]} 69. Nd3 {[%clk 0:00:40]}  Ka2 {[%clk 0:00:12]} 70. b4 {[%clk 0:00:40]}  Ka3 {[%clk 0:00:13]} 71. b5 {[%clk 0:00:41]}  Ka4 {[%clk 0:00:14]} 72. b6 {[%clk 0:00:41]}  Ka5 {[%clk 0:00:15]} 73. b7 {[%clk 0:00:42]}  Ka6 {[%clk 0:00:15]} 74. b8=Q {[%clk 0:00:42]}  Ka5 {[%clk 0:00:16]} 75. Qb7 {[%clk 0:00:42]}  Ka4 {[%clk 0:00:17]} 76. Qb6 {[%clk 0:00:42]}  Ka3 {[%clk 0:00:18]} 77. Qb5 {[%clk 0:00:42]}  Ka2 {[%clk 0:00:19]} 78. Qb4 {[%clk 0:00:42]}  Ka1 {[%clk 0:00:20]} 79. Kc3 {[%clk 0:00:42]}  Ka2 {[%clk 0:00:20]} 80. Kd4 {[%clk 0:00:43]}  Ka1 {[%clk 0:00:21]} 81. Ke5 {[%clk 0:00:44]}  Ka2 {[%clk 0:00:22]} 82. Kf6 {[%clk 0:00:45]}  Ka1 {[%clk 0:00:23]} 83. Kg7 {[%clk 0:00:46]}  Ka2 {[%clk 0:00:24]} 84. Kh8 {[%clk 0:00:47]}  Ka1 {[%clk 0:00:24]} 85. Kg8 {[%clk 0:00:48]}  Ka2 {[%clk 0:00:25]} 86. Kf8 {[%clk 0:00:49]}  Ka1 {[%clk 0:00:26]} 87. Ke8 {[%clk 0:00:49]}  Ka2 {[%clk 0:00:27]} 88. Kd8 {[%clk 0:00:50]}  Ka1 {[%clk 0:00:28]} 89. Kc8 {[%clk 0:00:51]}  Ka2 {[%clk 0:00:29]} 90. Kb8 {[%clk 0:00:52]}  Ka1 {[%clk 0:00:30]} 91. Kc7 {[%clk 0:00:52]}  Ka2 {[%clk 0:00:31]} 92. Qb5 {[%clk 0:00:53]}  Ka1 {[%clk 0:00:32]} 93. Kc6 {[%clk 0:00:53]}  Ka2 {[%clk 0:00:33]} 94. Nc1+ {[%clk 0:00:53]}  Ka1 {[%clk 0:00:33]} 95. Ne2 {[%clk 0:00:52]}  Ka2 {[%clk 0:00:34]} 96. Kc5 {[%clk 0:00:52]}  Ka1 {[%clk 0:00:35]} 97. Kc4 {[%clk 0:00:52]}  Ka2 {[%clk 0:00:36]} 98. Kd3 {[%clk 0:00:53]}  Ka1 {[%clk 0:00:37]} 99. Kd2 {[%clk 0:00:53]}  Ka2 {[%clk 0:00:38]} 100. Ke1 {[%clk 0:00:54]}  Ka1 {[%clk 0:00:39]} 101. Kf1 {[%clk 0:00:55]}  Ka2 {[%clk 0:00:40]} 102. Kf2 {[%clk 0:00:55]}  Ka3 {[%clk 0:00:41]} 103. Ke3 {[%clk 0:00:56]}  Ka2 {[%clk 0:00:41]} 104. Kd2 {[%clk 0:00:57]}  Ka3 {[%clk 0:00:42]} 105. Kc2 {[%clk 0:00:58]}  Ka2 {[%clk 0:00:43]} 106. Qa4# {[%clk 0:00:58]} 1-0

[Event "December 19 Early 2023"]
[Site "https://www.chess.com"]
[Date "2023.12.19"]
[Round "11"]
[White "Pranav, V"]
[Black "Rustemov, Alexander"]
[Result "1-0"]
[Board "16"]
[TimeControl "180+1"]
[WhiteFideId "25060783"]
[BlackFideId "4119002"]
[WhiteElo "2562"]
[BlackElo "2801"]
[WhiteTeam "IND"]
[BlackTeam "RUS"]
[WhiteClock "0:01:16"]
[BlackClock "0:00:00"]

1. e4 {[%clk 0:03:00]}  e6 {[%clk 0:02:58]} 2. d4 {[%clk 0:03:00]}  d5 {[%clk 0:02:58]} 3. Nc3 {[%clk 0:03:01]}  dxe4 {[%clk 0:02:59]} 4. Nxe4 {[%clk 0:03:01]}  Bd7 {[%clk 0:03:00]} 5. Nf3 {[%clk 0:03:01]}  Bc6 {[%clk 0:02:59]} 6. Bd3 {[%clk 0:03:02]}  Nd7 {[%clk 0:02:59]} 7. O-O {[%clk 0:03:02]}  Ngf6 {[%clk 0:03:00]} 8. Ng3 {[%clk 0:03:03]}  Be7 {[%clk 0:03:00]} 9. Re1 {[%clk 0:03:04]}  O-O {[%clk 0:03:00]} 10. c4 {[%clk 0:03:04]}  Bb4 {[%clk 0:02:59]} 11. Rf1 {[%clk 0:02:57]}  Be7 {[%clk 0:02:59]} 12. a3 {[%clk 0:02:55]}  a5 {[%clk 0:02:58]} 13. Re1 {[%clk 0:02:55]}  b6 {[%clk 0:02:58]} 14. Bf4 {[%clk 0:02:55]}  Bb7 {[%clk 0:02:58]} 15. h3 {[%clk 0:02:55]}  Re8 {[%clk 0:02:54]} 16. Qe2 {[%clk 0:02:54]}  c5 {[%clk 0:02:50]} 17. Rad1 {[%clk 0:02:47]}  Bxf3 {[%clk 0:02:49]} 18. Qxf3 {[%clk 0:02:46]}  cxd4 {[%clk 0:02:49]} 19. Bb1 {[%clk 0:02:43]}  Bc5 {[%clk 0:02:43]} 20. Ne4 {[%clk 0:02:40]}  e5 {[%clk 0:02:37]} 21. Bg5 {[%clk 0:02:40]}  h6 {[%clk 0:02:37]} 22. Bh4 {[%clk 0:02:40]}  Be7 {[%clk 0:02:36]} 23. Bg3 {[%clk 0:02:25]}  Qc7 {[%clk 0:02:33]} 24. Rxd4 {[%clk 0:02:23]}  Rac8 {[%clk 0:02:26]} 25. Red1 {[%clk 0:02:16]}  Nc5 {[%clk 0:01:27]} 26. Nxf6+ {[%clk 0:02:11]}  Bxf6 {[%clk 0:01:27]} 27. Rd6 {[%clk 0:02:12]}  Rcd8 {[%clk 0:01:21]} 28. R6d5 {[%clk 0:01:49]}  Rxd5 {[%clk 0:01:19]} 29. cxd5 {[%clk 0:01:50]}  Qd6 {[%clk 0:01:06]} 30. Qe2 {[%clk 0:01:47]}  g6 {[%clk 0:01:05]} 31. Qb5 {[%clk 0:01:38]}  Rd8 {[%clk 0:01:01]} 32. b4 {[%clk 0:01:34]}  axb4 {[%clk 0:01:00]} 33. axb4 {[%clk 0:01:35]}  Nb3 {[%clk 0:00:57]} 34. Qc4 {[%clk 0:01:26]}  Na1 {[%clk 0:00:33]} 35. Qa2 {[%clk 0:01:26]}  Qxb4 {[%clk 0:00:27]} 36. Qxa1 {[%clk 0:01:25]}  Qd6 {[%clk 0:00:13]} 37. Be4 {[%clk 0:01:22]}  Kg7 {[%clk 0:00:13]} 38. Rb1 {[%clk 0:01:22]}  Rb8 {[%clk 0:00:13]} 39. Rb5 {[%clk 0:01:21]}  h5 {[%clk 0:00:12]} 40. h4 {[%clk 0:01:21]}  Qd8 {[%clk 0:00:10]} 41. Bxe5 {[%clk 0:01:20]}  Rb7 {[%clk 0:00:04]} 42. d6 {[%clk 0:01:20]}  Rd7 {[%clk 0:00:03]} 43. Bxf6+ {[%clk 0:01:14]}  Qxf6 {[%clk 0:00:04]} 44. Qxf6+ {[%clk 0:01:15]}  Kxf6 {[%clk 0:00:05]} 45. Rxb6 {[%clk 0:01:15]}  Ke6 {[%clk 0:00:04]} 46. Bc2 {[%clk 0:01:15]}  Rd8 {[%clk 0:00:02]} 47. Ba4 {[%clk 0:01:15]}  Ke5 {[%clk 0:00:01]} 48. d7 {[%clk 0:01:15]}  f6 {[%clk 0:00:00]} 49. Rb1 {[%clk 0:01:16]} 1-0